[Event "*** Titled Tuesday Blitz"]
[Site "Chess.com"]
[Date "2019.07.02"]
[Round "7"]
[White "Hikaru"]
[Black "OparinGrigoriy"]
[Result "1-0"]
[WhiteElo "3155"]
[BlackElo "2990"]
[TimeControl "180+2"]
[EndTime "14:36:48 PDT"]
[Termination "Hikaru won by resignation"]

1. Nf3 {[%clk 0:03:01.9]} 1... d5 {[%clk 0:02:59.1]} 2. b3 {[%clk 0:03:02.9]}
2... Nf6 {[%clk 0:02:59.7]} 3. Bb2 {[%clk 0:03:04.3]} 3... Bf5 {[%clk
0:03:01.1]} 4. Nh4 {[%clk 0:03:04.5]} 4... Bg6 {[%clk 0:02:59.7]} 5. Nxg6 {[%clk
0:03:04.7]} 5... hxg6 {[%clk 0:03:01.6]} 6. g3 {[%clk 0:03:05.4]} 6... c6 {[%clk
0:02:59.8]} 7. Bg2 {[%clk 0:03:05.7]} 7... Nbd7 {[%clk 0:03:01.3]} 8. d3 {[%clk
0:03:06.5]} 8... e5 {[%clk 0:03:02]} 9. Nd2 {[%clk 0:03:07.4]} 9... Bc5 {[%clk
0:02:59.9]} 10. e3 {[%clk 0:03:06.6]} 10... Qe7 {[%clk 0:03:00.1]} 11. a3 {[%clk
0:03:07.4]} 11... a5 {[%clk 0:02:59.7]} 12. Qe2 {[%clk 0:03:08.3]} 12... O-O
{[%clk 0:02:32.9]} 13. h4 {[%clk 0:02:59.6]} 13... Rfe8 {[%clk 0:02:33.5]} 14.
g4 {[%clk 0:03:00.7]} 14... Rad8 {[%clk 0:02:24.3]} 15. g5 {[%clk 0:02:49.6]}
15... Nh5 {[%clk 0:02:25.1]} 16. Bf3 {[%clk 0:02:50.6]} 16... e4 {[%clk
0:02:17.2]} 17. dxe4 {[%clk 0:02:46.4]} 17... dxe4 {[%clk 0:02:19.1]} 18. Nxe4
{[%clk 0:02:41.4]} 18... Ne5 {[%clk 0:02:19.7]} 19. Bg2 {[%clk 0:02:06.8]} 19...
a4 {[%clk 0:01:32.3]} 20. bxa4 {[%clk 0:01:40.1]} 20... Bb6 {[%clk 0:01:19.3]}
21. O-O {[%clk 0:01:38.6]} 21... Qe6 {[%clk 0:01:20.7]} 22. Rad1 {[%clk
0:01:39.1]} 22... Nc4 {[%clk 0:01:17.4]} 23. Bc1 {[%clk 0:01:36.3]} 23... Bc7
{[%clk 0:01:10.3]} 24. Rxd8 {[%clk 0:01:36.5]} 24... Rxd8 {[%clk 0:01:11.8]} 25.
Rd1 {[%clk 0:01:38.1]} 25... Ra8 {[%clk 0:01:08.4]} 26. Nc5 {[%clk 0:01:34.3]}
26... Nf4 {[%clk 0:00:57.7]} 27. Nxe6 {[%clk 0:01:18.1]} 27... Nxe2+ {[%clk
0:00:58.8]} 28. Kf1 {[%clk 0:01:19.8]} 28... Ng3+ {[%clk 0:00:55.8]} 29. fxg3
{[%clk 0:01:20.6]} 29... fxe6 {[%clk 0:00:57.3]} 30. Bh3 {[%clk 0:01:21.8]}
30... Ne5 {[%clk 0:00:44.1]} 31. Bxe6+ {[%clk 0:01:22]} 31... Kf8 {[%clk
0:00:45.6]} 32. Bb3 {[%clk 0:01:19.2]} 32... Ke7 {[%clk 0:00:46.8]} 33. Ke2
{[%clk 0:01:17.6]} 33... Rf8 {[%clk 0:00:44.4]} 34. Bd2 {[%clk 0:01:16.8]} 34...
Bd6 {[%clk 0:00:44.3]} 35. Rf1 {[%clk 0:01:11.9]} 35... Rxf1 {[%clk 0:00:42]}
36. Kxf1 {[%clk 0:01:13]} 36... Nf3 {[%clk 0:00:43.3]} 37. Bb4 {[%clk
0:01:10.9]} 37... c5 {[%clk 0:00:42.8]} 38. Bc3 {[%clk 0:01:12.1]} 38... Be5
{[%clk 0:00:41.8]} 39. Bxe5 {[%clk 0:01:05.9]} 39... Nxe5 {[%clk 0:00:42.6]} 40.
Bd5 {[%clk 0:01:05]} 40... b6 {[%clk 0:00:43.3]} 41. Ke2 {[%clk 0:01:05.2]}
41... Kd6 {[%clk 0:00:42.9]} 42. Be4 {[%clk 0:01:06.2]} 42... Ke6 {[%clk
0:00:44.3]} 43. Kd2 {[%clk 0:01:06.8]} 43... Kd6 {[%clk 0:00:35.2]} 44. Kc3
{[%clk 0:01:07.7]} 44... Kc7 {[%clk 0:00:34.9]} 45. Kb3 {[%clk 0:01:02.1]} 45...
Kb8 {[%clk 0:00:30.5]} 46. g4 {[%clk 0:00:48]} 46... Kc7 {[%clk 0:00:14.1]} 47.
h5 {[%clk 0:00:48.7]} 47... Nf7 {[%clk 0:00:15.7]} 48. Bxg6 {[%clk 0:00:45.9]}
48... Nxg5 {[%clk 0:00:17.1]} 49. Kc4 {[%clk 0:00:47.4]} 49... Kc6 {[%clk
0:00:17]} 50. Be8+ {[%clk 0:00:48.3]} 50... Kd6 {[%clk 0:00:17.9]} 51. Kb5
{[%clk 0:00:49.6]} 51... Kc7 {[%clk 0:00:19.3]} 52. Bg6 {[%clk 0:00:49.1]} 52...
Nf3 {[%clk 0:00:18.7]} 53. a5 {[%clk 0:00:49.5]} 53... bxa5 {[%clk 0:00:19.3]}
54. Kxc5 {[%clk 0:00:51.4]} 54... Ne5 {[%clk 0:00:16.5]} 55. g5 {[%clk
0:00:52.1]} 1-0

[Event "*** Titled Tuesday Blitz"]
[Site "Chess.com"]
[Date "2019.07.02"]
[Round "7"]
[White "lrestevez"]
[Black "WorldChampionBulletChess"]
[Result "1-0"]
[WhiteElo "2139"]
[BlackElo "2119"]
[TimeControl "180+2"]
[EndTime "14:36:48 PDT"]
[Termination "lrestevez won by resignation"]

1. e4 {[%clk 0:03:01.9]} 1... c5 {[%clk 0:02:55.8]} 2. Nf3 {[%clk 0:03:03]} 2...
e6 {[%clk 0:02:57.6]} 3. Be2 {[%clk 0:03:02.3]} 3... d5 {[%clk 0:02:58.2]} 4.
exd5 {[%clk 0:03:02.8]} 4... exd5 {[%clk 0:03:00.1]} 5. d4 {[%clk 0:03:04]} 5...
Nf6 {[%clk 0:03:02]} 6. dxc5 {[%clk 0:03:05]} 6... Bxc5 {[%clk 0:03:03.9]} 7.
O-O {[%clk 0:03:05.8]} 7... O-O {[%clk 0:03:05.5]} 8. Bg5 {[%clk 0:03:05.3]}
8... h6 {[%clk 0:03:05.4]} 9. Bh4 {[%clk 0:03:04.7]} 9... Be7 {[%clk 0:03:05.6]}
10. c3 {[%clk 0:03:02.5]} 10... Nc6 {[%clk 0:03:06.8]} 11. Nbd2 {[%clk
0:03:02.5]} 11... Bf5 {[%clk 0:03:06.5]} 12. Nb3 {[%clk 0:03:02.4]} 12... Ne4
{[%clk 0:02:49]} 13. Bxe7 {[%clk 0:02:59.7]} 13... Nxe7 {[%clk 0:02:50.9]} 14.
Nbd4 {[%clk 0:02:53.8]} 14... Bg6 {[%clk 0:02:50.8]} 15. Ne5 {[%clk 0:02:52.5]}
15... Qd6 {[%clk 0:02:49.6]} 16. Nxg6 {[%clk 0:02:52.1]} 16... Nxg6 {[%clk
0:02:51.5]} 17. Bf3 {[%clk 0:02:45.5]} 17... Rfe8 {[%clk 0:02:50.3]} 18. Re1
{[%clk 0:02:36.9]} 18... Nh4 {[%clk 0:02:42.9]} 19. Bxe4 {[%clk 0:02:36.9]}
19... dxe4 {[%clk 0:02:38.6]} 20. Qg4 {[%clk 0:02:31.3]} 20... Ng6 {[%clk
0:02:13.4]} 21. Rxe4 {[%clk 0:02:27.3]} 21... Re5 {[%clk 0:02:09.6]} 22. Rae1
{[%clk 0:02:19.5]} 22... Rae8 {[%clk 0:02:10.1]} 23. Rxe5 {[%clk 0:02:05.1]}
23... Rxe5 {[%clk 0:02:12]} 24. Rxe5 {[%clk 0:01:59.5]} 24... Qxe5 {[%clk
0:02:13.9]} 25. g3 {[%clk 0:01:59.4]} 25... Qe1+ {[%clk 0:01:57.4]} 26. Kg2
{[%clk 0:01:59.4]} 26... Qe8 {[%clk 0:01:18.8]} 27. Qf3 {[%clk 0:01:44.3]} 27...
Qd7 {[%clk 0:01:11.2]} 28. Qe4 {[%clk 0:01:41.2]} 28... Ne7 {[%clk 0:00:48.2]}
29. h4 {[%clk 0:01:35.7]} 29... b5 {[%clk 0:00:25.7]} 30. a3 {[%clk 0:01:28.4]}
30... f5 {[%clk 0:00:12.7]} 31. Qe6+ {[%clk 0:01:22.3]} 31... Qxe6 {[%clk
0:00:13]} 32. Nxe6 {[%clk 0:01:24.2]} 32... Kf7 {[%clk 0:00:11.9]} 33. Nc7
{[%clk 0:01:25]} 33... Nc6 {[%clk 0:00:05.3]} 34. Nxb5 {[%clk 0:01:24.4]} 34...
g5 {[%clk 0:00:05.8]} 35. hxg5 {[%clk 0:01:24.5]} 35... hxg5 {[%clk 0:00:07.7]}
36. Nd4 {[%clk 0:01:23]} 36... Na5 {[%clk 0:00:07.5]} 37. Nxf5 {[%clk
0:01:20.4]} 37... Nc4 {[%clk 0:00:09.1]} 38. b4 {[%clk 0:01:10.8]} 38... Nxa3
{[%clk 0:00:09.7]} 39. Nd6+ {[%clk 0:01:10.3]} 39... Ke6 {[%clk 0:00:09.6]} 40.
Ne4 {[%clk 0:01:08.4]} 40... Kf5 {[%clk 0:00:09.2]} 41. Kf3 {[%clk 0:01:08.2]}
41... g4+ {[%clk 0:00:09.7]} 42. Ke3 {[%clk 0:01:08.2]} 42... Nc2+ {[%clk
0:00:10.7]} 43. Kd3 {[%clk 0:01:06.9]} 43... Ne1+ {[%clk 0:00:10.6]} 44. Ke2
{[%clk 0:01:05.8]} 44... Nc2 {[%clk 0:00:10.9]} 45. Nd6+ {[%clk 0:01:05]} 45...
Ke5 {[%clk 0:00:11.6]} 46. Nb5 {[%clk 0:01:05.7]} 46... a6 {[%clk 0:00:11.4]}
47. Nc7 {[%clk 0:01:06.4]} 47... Na3 {[%clk 0:00:05.3]} 48. Nxa6 {[%clk
0:01:04.1]} 48... Nc4 {[%clk 0:00:07.2]} 49. Nc7 {[%clk 0:01:02.8]} 49... Kd6
{[%clk 0:00:07.1]} 50. Ne8+ {[%clk 0:01:02]} 50... Ke7 {[%clk 0:00:07.1]} 51.
Nc7 {[%clk 0:01:02.8]} 51... Kd6 {[%clk 0:00:08.1]} 52. Nb5+ {[%clk 0:01:03.7]}
52... Kc6 {[%clk 0:00:08.8]} 53. Nd4+ {[%clk 0:01:05]} 53... Kd5 {[%clk
0:00:10.4]} 54. Nf5 {[%clk 0:01:03.9]} 54... Ke5 {[%clk 0:00:10.2]} 55. Ne3
{[%clk 0:01:05.2]} 55... Na3 {[%clk 0:00:10.2]} 56. Nxg4+ {[%clk 0:01:05.1]}
56... Kf5 {[%clk 0:00:11.3]} 57. Ne3+ {[%clk 0:01:05.9]} 1-0

[Event "*** Titled Tuesday Blitz"]
[Site "Chess.com"]
[Date "2019.07.02"]
[Round "7"]
[White "SergeiAza"]
[Black "enriquetejedor"]
[Result "1/2-1/2"]
[WhiteElo "2818"]
[BlackElo "2600"]
[TimeControl "180+2"]
[EndTime "14:36:49 PDT"]
[Termination "Game drawn - insufficient material"]

1. e4 {[%clk 0:02:22.9]} 1... e6 {[%clk 0:02:58.8]} 2. d4 {[%clk 0:02:23.4]}
2... d5 {[%clk 0:03:00.5]} 3. Nd2 {[%clk 0:02:24.9]} 3... Be7 {[%clk 0:03:00.5]}
4. e5 {[%clk 0:02:24.4]} 4... c5 {[%clk 0:03:01.5]} 5. Qg4 {[%clk 0:02:22.3]}
5... Kf8 {[%clk 0:02:55.4]} 6. dxc5 {[%clk 0:02:23.2]} 6... Nh6 {[%clk
0:02:56.2]} 7. Qh3 {[%clk 0:02:16.4]} 7... Nd7 {[%clk 0:02:54.9]} 8. Ngf3 {[%clk
0:02:16.5]} 8... Nxc5 {[%clk 0:02:51.4]} 9. Be2 {[%clk 0:02:14.4]} 9... Nf5
{[%clk 0:02:40.8]} 10. O-O {[%clk 0:02:11.6]} 10... Kg8 {[%clk 0:02:40.1]} 11.
Nb3 {[%clk 0:02:10.7]} 11... Ne4 {[%clk 0:02:37.9]} 12. Bd3 {[%clk 0:02:07.5]}
12... h5 {[%clk 0:02:34.8]} 13. Nbd4 {[%clk 0:01:31.3]} 13... g5 {[%clk
0:02:22.8]} 14. Nxf5 {[%clk 0:01:15.7]} 14... exf5 {[%clk 0:02:24.7]} 15. Nxg5
{[%clk 0:00:59.2]} 15... Nxg5 {[%clk 0:02:00.3]} 16. Bxg5 {[%clk 0:00:58.8]}
16... Bxg5 {[%clk 0:02:02.2]} 17. f4 {[%clk 0:01:00.1]} 17... Be7 {[%clk
0:01:57.6]} 18. Bxf5 {[%clk 0:00:57.8]} 18... Qb6+ {[%clk 0:01:57.4]} 19. Kh1
{[%clk 0:00:58.3]} 19... Bxf5 {[%clk 0:01:55.2]} 20. Qxf5 {[%clk 0:00:59.3]}
20... Qg6 {[%clk 0:01:47.7]} 21. Qd7 {[%clk 0:00:59.2]} 21... Qe6 {[%clk
0:01:48.4]} 22. Qxb7 {[%clk 0:00:58.5]} 22... Re8 {[%clk 0:01:32.1]} 23. Rad1
{[%clk 0:00:57.5]} 23... h4 {[%clk 0:01:26.4]} 24. h3 {[%clk 0:00:58.3]} 24...
Rh5 {[%clk 0:01:22.8]} 25. Qxd5 {[%clk 0:00:58.7]} 25... Qxd5 {[%clk 0:01:23.2]}
26. Rxd5 {[%clk 0:00:59.6]} 26... Rb8 {[%clk 0:01:13.7]} 27. b3 {[%clk
0:00:58.4]} 27... Kf8 {[%clk 0:01:12]} 28. c4 {[%clk 0:00:59]} 28... Ke8 {[%clk
0:01:09.4]} 29. f5 {[%clk 0:00:59.7]} 29... Rd8 {[%clk 0:01:02.9]} 30. Rf4
{[%clk 0:00:41]} 30... a5 {[%clk 0:00:43.6]} 31. Kg1 {[%clk 0:00:39.2]} 31... a4
{[%clk 0:00:42.8]} 32. Kf1 {[%clk 0:00:33.7]} 32... axb3 {[%clk 0:00:41.9]} 33.
axb3 {[%clk 0:00:34.4]} 33... Rxd5 {[%clk 0:00:33.8]} 34. cxd5 {[%clk
0:00:35.1]} 34... f6 {[%clk 0:00:35.7]} 35. exf6 {[%clk 0:00:30.3]} 35... Bxf6
{[%clk 0:00:34.9]} 36. b4 {[%clk 0:00:29.6]} 36... Rh7 {[%clk 0:00:33.5]} 37.
Ke2 {[%clk 0:00:29.3]} 37... Rd7 {[%clk 0:00:32.9]} 38. b5 {[%clk 0:00:24]}
38... Rxd5 {[%clk 0:00:33]} 39. Rb4 {[%clk 0:00:25.6]} 39... Kd7 {[%clk
0:00:25.4]} 40. b6 {[%clk 0:00:26.5]} 40... Kc8 {[%clk 0:00:26.7]} 41. Kf3
{[%clk 0:00:21.3]} 41... Rxf5+ {[%clk 0:00:27.3]} 42. Rf4 {[%clk 0:00:21.7]}
42... Rxf4+ {[%clk 0:00:17.6]} 43. Kxf4 {[%clk 0:00:23]} 43... Kb7 {[%clk
0:00:19.1]} 44. Kg4 {[%clk 0:00:19.5]} 44... Kxb6 {[%clk 0:00:13.5]} 45. g3
{[%clk 0:00:20.7]} 45... hxg3 {[%clk 0:00:08.9]} 46. Kxg3 {[%clk 0:00:21.8]}
46... Kc7 {[%clk 0:00:10.4]} 47. h4 {[%clk 0:00:23]} 47... Kd8 {[%clk
0:00:12.3]} 48. Kg4 {[%clk 0:00:23.9]} 48... Ke8 {[%clk 0:00:14.2]} 49. h5
{[%clk 0:00:25.1]} 49... Kf7 {[%clk 0:00:16.1]} 50. h6 {[%clk 0:00:26.4]} 50...
Bd8 {[%clk 0:00:17.4]} 51. h7 {[%clk 0:00:27.7]} 51... Kg7 {[%clk 0:00:17.6]}
52. h8=Q+ {[%clk 0:00:28.1]} 52... Kxh8 {[%clk 0:00:18]} 1/2-1/2

[Event "*** Titled Tuesday Blitz"]
[Site "Chess.com"]
[Date "2019.07.02"]
[Round "7"]
[White "pr1105"]
[Black "IveBeenThroughPain"]
[Result "0-1"]
[WhiteElo "2194"]
[BlackElo "2298"]
[TimeControl "180+2"]
[EndTime "14:36:50 PDT"]
[Termination "IveBeenThroughPain won by resignation"]

1. e4 {[%clk 0:03:01.9]} 1... e5 {[%clk 0:03:01]} 2. Nf3 {[%clk 0:03:02.6]} 2...
Nc6 {[%clk 0:03:02.1]} 3. Bc4 {[%clk 0:03:02.5]} 3... Nf6 {[%clk 0:03:02.9]} 4.
d3 {[%clk 0:03:02.5]} 4... Be7 {[%clk 0:03:03.9]} 5. O-O {[%clk 0:03:01.5]} 5...
O-O {[%clk 0:03:04.6]} 6. a4 {[%clk 0:03:03.2]} 6... d5 {[%clk 0:03:01.4]} 7.
exd5 {[%clk 0:03:05.1]} 7... Nxd5 {[%clk 0:03:02.4]} 8. Re1 {[%clk 0:03:06.3]}
8... f6 {[%clk 0:02:54.8]} 9. a5 {[%clk 0:03:02.5]} 9... a6 {[%clk 0:02:54.2]}
10. c3 {[%clk 0:02:49.2]} 10... Be6 {[%clk 0:02:54]} 11. d4 {[%clk 0:02:45.7]}
11... Qd6 {[%clk 0:02:54.6]} 12. dxe5 {[%clk 0:02:36.6]} 12... Nxe5 {[%clk
0:02:55.2]} 13. Nxe5 {[%clk 0:02:35.9]} 13... fxe5 {[%clk 0:02:56.5]} 14. Nd2
{[%clk 0:02:34.7]} 14... Nf4 {[%clk 0:02:43.2]} 15. Qb3 {[%clk 0:02:20.3]} 15...
Kh8 {[%clk 0:02:25.4]} 16. Bxe6 {[%clk 0:02:13.7]} 16... Nxe6 {[%clk 0:02:26.2]}
17. Nc4 {[%clk 0:02:13.8]} 17... Qc5 {[%clk 0:02:25.5]} 18. Be3 {[%clk
0:02:12.8]} 18... Qd5 {[%clk 0:02:21.4]} 19. Rad1 {[%clk 0:02:05]} 19... Qe4
{[%clk 0:02:16]} 20. Bg5 {[%clk 0:01:45.5]} 20... Qf5 {[%clk 0:01:47.4]} 21.
Bxe7 {[%clk 0:01:41.8]} 21... Qxf2+ {[%clk 0:01:48.2]} 22. Kh1 {[%clk
0:01:42.4]} 22... Rf7 {[%clk 0:01:45.7]} 23. Qxb7 {[%clk 0:01:01.5]} 23... Re8
{[%clk 0:01:31.3]} 24. Bb4 {[%clk 0:00:56]} 24... c5 {[%clk 0:01:29.9]} 25. Qc6
{[%clk 0:00:45]} 25... Ref8 {[%clk 0:01:24.6]} 26. Ne3 {[%clk 0:00:28]} 26...
Qxe3 {[%clk 0:01:16.3]} 27. h3 {[%clk 0:00:17.2]} 27... Qh6 {[%clk 0:01:02.2]}
28. Bxc5 {[%clk 0:00:17.3]} 28... Rc7 {[%clk 0:00:59.1]} 29. Qd6 {[%clk
0:00:13.7]} 29... Rxc5 {[%clk 0:00:55.6]} 30. Rf1 {[%clk 0:00:08.8]} 30... Rxf1+
{[%clk 0:00:49.2]} 31. Rxf1 {[%clk 0:00:10.7]} 31... Rc8 {[%clk 0:00:50.6]} 32.
Qd7 {[%clk 0:00:10.6]} 32... Rf8 {[%clk 0:00:47.6]} 33. Rxf8+ {[%clk 0:00:11.3]}
33... Nxf8 {[%clk 0:00:48.8]} 34. Qe8 {[%clk 0:00:13.1]} 34... Qf6 {[%clk
0:00:49.4]} 35. b4 {[%clk 0:00:14.5]} 35... Kg8 {[%clk 0:00:48.7]} 36. Kh2
{[%clk 0:00:14.5]} 36... Qe6 {[%clk 0:00:41.5]} 37. Qxe6+ {[%clk 0:00:13.9]}
37... Nxe6 {[%clk 0:00:42.5]} 38. c4 {[%clk 0:00:14.1]} 38... Kf7 {[%clk
0:00:43.2]} 39. b5 {[%clk 0:00:15.4]} 39... Nc5 {[%clk 0:00:41.8]} 40. Kg3
{[%clk 0:00:15]} 40... Ke6 {[%clk 0:00:39.4]} 41. Kf3 {[%clk 0:00:16.2]} 41...
Kd6 {[%clk 0:00:36.2]} 42. Ke3 {[%clk 0:00:16.3]} 42... g6 {[%clk 0:00:26.2]}
43. h4 {[%clk 0:00:16.5]} 43... Nb3 {[%clk 0:00:27.4]} 44. bxa6 {[%clk
0:00:15.3]} 44... Nxa5 {[%clk 0:00:28.8]} 45. a7 {[%clk 0:00:15.8]} 45... Nxc4+
{[%clk 0:00:29.7]} 46. Ke4 {[%clk 0:00:17.1]} 46... Nb6 {[%clk 0:00:31.4]} 47.
g4 {[%clk 0:00:18.4]} 47... Na8 {[%clk 0:00:32]} 48. h5 {[%clk 0:00:19.6]} 48...
Ke6 {[%clk 0:00:31.5]} 49. h6 {[%clk 0:00:20]} 49... Nb6 {[%clk 0:00:31.4]} 50.
g5 {[%clk 0:00:20.7]} 50... Na8 {[%clk 0:00:32.7]} 51. Ke3 {[%clk 0:00:22.1]}
51... Kf5 {[%clk 0:00:33.8]} 52. Kd3 {[%clk 0:00:23.8]} 52... e4+ {[%clk
0:00:34.8]} 53. Ke3 {[%clk 0:00:25]} 53... Ke5 {[%clk 0:00:36.2]} 54. Ke2 {[%clk
0:00:26.1]} 54... Kf4 {[%clk 0:00:35.3]} 55. Kd2 {[%clk 0:00:27.3]} 55... Kxg5
{[%clk 0:00:35.8]} 56. Ke3 {[%clk 0:00:29.2]} 56... Kf5 {[%clk 0:00:37]} 0-1

[Event "*** Titled Tuesday Blitz"]
[Site "Chess.com"]
[Date "2019.07.02"]
[Round "7"]
[White "Qvalda"]
[Black "sergeikim"]
[Result "1-0"]
[WhiteElo "2504"]
[BlackElo "2471"]
[TimeControl "180+2"]
[EndTime "14:36:51 PDT"]
[Termination "Qvalda won by checkmate"]

1. g3 {[%clk 0:02:59.1]} 1... Nf6 {[%clk 0:03:00.3]} 2. Bg2 {[%clk 0:03:00.2]}
2... g6 {[%clk 0:03:01.5]} 3. e4 {[%clk 0:03:01]} 3... d6 {[%clk 0:03:01.8]} 4.
d4 {[%clk 0:03:01.6]} 4... Bg7 {[%clk 0:03:02.7]} 5. Nc3 {[%clk 0:03:02.3]} 5...
O-O {[%clk 0:03:03.4]} 6. Nge2 {[%clk 0:03:03.2]} 6... e5 {[%clk 0:03:03.5]} 7.
O-O {[%clk 0:03:01.7]} 7... c6 {[%clk 0:03:04.2]} 8. a4 {[%clk 0:03:02.2]} 8...
a5 {[%clk 0:03:04.2]} 9. h3 {[%clk 0:03:01.5]} 9... Na6 {[%clk 0:03:03.7]} 10.
Be3 {[%clk 0:03:01]} 10... Qc7 {[%clk 0:03:03.1]} 11. g4 {[%clk 0:02:59.4]}
11... Nb4 {[%clk 0:02:57.4]} 12. Ng3 {[%clk 0:02:51.4]} 12... Re8 {[%clk
0:02:52.2]} 13. Qd2 {[%clk 0:02:51.7]} 13... b6 {[%clk 0:02:48.6]} 14. f4 {[%clk
0:02:29.2]} 14... Ba6 {[%clk 0:02:42.2]} 15. Rf2 {[%clk 0:02:28.9]} 15... Rad8
{[%clk 0:02:35]} 16. Raf1 {[%clk 0:02:20.8]} 16... exd4 {[%clk 0:02:32.2]} 17.
Bxd4 {[%clk 0:02:20]} 17... Bxf1 {[%clk 0:02:25.5]} 18. Bxf1 {[%clk 0:02:21.1]}
18... Nd7 {[%clk 0:02:11.9]} 19. Bxg7 {[%clk 0:02:20]} 19... Kxg7 {[%clk
0:02:12.4]} 20. f5 {[%clk 0:02:16.6]} 20... Ne5 {[%clk 0:02:11.4]} 21. Qg5
{[%clk 0:01:51.1]} 21... Kh8 {[%clk 0:01:49.5]} 22. Qf6+ {[%clk 0:01:22.8]}
22... Kg8 {[%clk 0:01:48.7]} 23. Qg5 {[%clk 0:01:24.1]} 23... Qe7 {[%clk
0:01:36.2]} 24. f6 {[%clk 0:01:17.9]} 24... Qf8 {[%clk 0:01:37.1]} 25. Nf5
{[%clk 0:01:16.5]} 25... Kh8 {[%clk 0:01:33.9]} 26. Ne7 {[%clk 0:00:52.6]} 26...
Rd7 {[%clk 0:01:22.7]} 27. h4 {[%clk 0:00:46]} 27... Rdxe7 {[%clk 0:01:22.5]}
28. fxe7 {[%clk 0:00:47.2]} 28... Qxe7 {[%clk 0:01:24]} 29. Qxe7 {[%clk
0:00:42.3]} 29... Rxe7 {[%clk 0:01:24.4]} 30. g5 {[%clk 0:00:41.6]} 30... Kg7
{[%clk 0:01:16.2]} 31. Kg2 {[%clk 0:00:39.7]} 31... Ng4 {[%clk 0:01:12.9]} 32.
Rd2 {[%clk 0:00:36.7]} 32... d5 {[%clk 0:00:57.9]} 33. exd5 {[%clk 0:00:33.6]}
33... Ne3+ {[%clk 0:00:58]} 34. Kf2 {[%clk 0:00:33.9]} 34... Nexd5 {[%clk
0:00:57.7]} 35. Nxd5 {[%clk 0:00:34.5]} 35... Nxd5 {[%clk 0:00:58.2]} 36. Bg2
{[%clk 0:00:33.3]} 36... Re5 {[%clk 0:00:50.2]} 37. c4 {[%clk 0:00:22.9]} 37...
Nb4 {[%clk 0:00:49.5]} 38. Rd6 {[%clk 0:00:19.1]} 38... Re6 {[%clk 0:00:48.9]}
39. Rd7 {[%clk 0:00:19.6]} 39... Re5 {[%clk 0:00:43]} 40. Rb7 {[%clk 0:00:19.6]}
40... Nd3+ {[%clk 0:00:39.6]} 41. Kg3 {[%clk 0:00:18]} 41... Re3+ {[%clk
0:00:29.4]} 42. Kg4 {[%clk 0:00:18.8]} 42... Nxb2 {[%clk 0:00:23.6]} 43. Bxc6
{[%clk 0:00:16.4]} 43... Nxc4 {[%clk 0:00:20.7]} 44. Bd5 {[%clk 0:00:16.8]}
44... Nd6 {[%clk 0:00:21.4]} 45. Rxb6 {[%clk 0:00:16.2]} 45... Nf5 {[%clk
0:00:21.3]} 46. Rb7 {[%clk 0:00:16.1]} 46... Nd6 {[%clk 0:00:21.7]} 47. Rd7
{[%clk 0:00:16.3]} 47... Nf5 {[%clk 0:00:22.4]} 48. Rxf7+ {[%clk 0:00:16]} 48...
Kh8 {[%clk 0:00:23.4]} 49. Rf8+ {[%clk 0:00:16.2]} 49... Kg7 {[%clk 0:00:23.2]}
50. Rg8# {[%clk 0:00:17.3]} 1-0

[Event "*** Titled Tuesday Blitz"]
[Site "Chess.com"]
[Date "2019.07.02"]
[Round "7"]
[White "johnathan113"]
[Black "Hrant_ChessMood"]
[Result "1-0"]
[WhiteElo "2710"]
[BlackElo "2935"]
[TimeControl "180+2"]
[EndTime "14:36:55 PDT"]
[Termination "johnathan113 won by resignation"]

1. c4 {[%clk 0:03:01.9]} 1... e5 {[%clk 0:03:00]} 2. g3 {[%clk 0:02:56.8]} 2...
Nf6 {[%clk 0:03:01.1]} 3. Bg2 {[%clk 0:02:58]} 3... c6 {[%clk 0:03:02.4]} 4. d4
{[%clk 0:02:59.2]} 4... e4 {[%clk 0:03:03.2]} 5. Nc3 {[%clk 0:02:58.9]} 5... Bb4
{[%clk 0:03:03.4]} 6. Qb3 {[%clk 0:02:58]} 6... Qe7 {[%clk 0:02:57.5]} 7. Bg5
{[%clk 0:02:54]} 7... Bxc3+ {[%clk 0:02:53.4]} 8. bxc3 {[%clk 0:02:47.5]} 8...
O-O {[%clk 0:02:45.8]} 9. Bxf6 {[%clk 0:02:43.8]} 9... Qxf6 {[%clk 0:02:47.7]}
10. Bxe4 {[%clk 0:02:45.3]} 10... Re8 {[%clk 0:02:46.8]} 11. Bg2 {[%clk
0:02:45.7]} 11... d6 {[%clk 0:02:39.4]} 12. Nf3 {[%clk 0:02:46]} 12... Nd7
{[%clk 0:02:34.4]} 13. O-O {[%clk 0:02:41.7]} 13... Nb6 {[%clk 0:02:28.5]} 14.
Rfe1 {[%clk 0:02:34.8]} 14... Be6 {[%clk 0:02:21.9]} 15. Nd2 {[%clk 0:02:35.2]}
15... h5 {[%clk 0:01:52.7]} 16. d5 {[%clk 0:02:26.5]} 16... cxd5 {[%clk
0:01:47.4]} 17. cxd5 {[%clk 0:02:28.4]} 17... Bf5 {[%clk 0:01:48.6]} 18. e4
{[%clk 0:02:26.8]} 18... Bg4 {[%clk 0:01:44]} 19. a4 {[%clk 0:02:07.8]} 19... h4
{[%clk 0:01:42.8]} 20. a5 {[%clk 0:02:08.6]} 20... Nd7 {[%clk 0:01:43]} 21. Qxb7
{[%clk 0:01:56.7]} 21... h3 {[%clk 0:01:43.9]} 22. Bh1 {[%clk 0:01:34.4]} 22...
Qxc3 {[%clk 0:01:44.1]} 23. Ra2 {[%clk 0:00:45]} 23... Nc5 {[%clk 0:01:26.1]}
24. Qb1 {[%clk 0:00:42.9]} 24... Rab8 {[%clk 0:01:26.2]} 25. Qc2 {[%clk
0:00:36.2]} 25... Qd4 {[%clk 0:01:26.2]} 26. Qc4 {[%clk 0:00:31.1]} 26... Qf6
{[%clk 0:01:17.5]} 27. e5 {[%clk 0:00:18.9]} 27... Qg6 {[%clk 0:01:18.5]} 28.
Ne4 {[%clk 0:00:16]} 28... Rxe5 {[%clk 0:01:16.1]} 29. f3 {[%clk 0:00:12.6]}
29... Bf5 {[%clk 0:01:15.3]} 30. Rae2 {[%clk 0:00:13.2]} 30... Bxe4 {[%clk
0:01:15.9]} 31. fxe4 {[%clk 0:00:15.1]} 31... Qg5 {[%clk 0:01:08]} 32. Qd4
{[%clk 0:00:11.8]} 32... Rb3 {[%clk 0:01:06.9]} 33. Qf2 {[%clk 0:00:09.4]} 33...
Nd3 {[%clk 0:01:04.6]} 34. Qe3 {[%clk 0:00:08.7]} 34... Nxe1 {[%clk 0:00:45.7]}
35. Qxb3 {[%clk 0:00:08.3]} 35... Qc1 {[%clk 0:00:47.2]} 36. Kf2 {[%clk
0:00:05.1]} 36... Nc2 {[%clk 0:00:39]} 37. Qxc2 {[%clk 0:00:05.6]} 37... Qxh1
{[%clk 0:00:39.5]} 38. Qc8+ {[%clk 0:00:07.5]} 38... Kh7 {[%clk 0:00:37]} 39.
Qxh3+ {[%clk 0:00:09]} 39... Kg6 {[%clk 0:00:38.7]} 40. Re1 {[%clk 0:00:10.1]}
40... Qxe1+ {[%clk 0:00:22]} 41. Kxe1 {[%clk 0:00:12]} 41... Rxe4+ {[%clk
0:00:23.9]} 42. Kf2 {[%clk 0:00:13.7]} 42... Ra4 {[%clk 0:00:25.8]} 43. Qd7
{[%clk 0:00:13.6]} 43... Rxa5 {[%clk 0:00:25.1]} 44. Qxd6+ {[%clk 0:00:15.1]}
44... Kf5 {[%clk 0:00:27]} 45. Qd7+ {[%clk 0:00:15.1]} 45... Ke4 {[%clk
0:00:25.8]} 46. d6 {[%clk 0:00:13.4]} 46... Ra2+ {[%clk 0:00:26.8]} 47. Ke1
{[%clk 0:00:14.6]} 47... Ke3 {[%clk 0:00:23.2]} 48. Qe7+ {[%clk 0:00:15.9]} 1-0